[Event "Late-Titled-Tuesday-Blitz-December-26-2023"]
[Site "Chess.com"]
[Date "2023.12.26"]
[Round "1"]
[White "TEREZANA"]
[Black "BogdanDeac"]
[Result "0-1"]
[WhiteElo "2502"]
[BlackElo "3021"]
[TimeControl "180+1"]
[EndTime "14:08:06 PST"]
[Termination "BogdanDeac won by resignation"]

1. d4 {[%clk 0:03:00.5]} 1... Nf6 {[%clk 0:02:57.1]} 2. Nf3 {[%clk 0:03:00]}
2... g6 {[%clk 0:02:56.2]} 3. Bg5 {[%clk 0:02:57.8]} 3... Bg7 {[%clk 0:02:55.8]}
4. Nbd2 {[%clk 0:02:57]} 4... h6 {[%clk 0:02:55.2]} 5. Bh4 {[%clk 0:02:57]} 5...
g5 {[%clk 0:02:55.5]} 6. Bg3 {[%clk 0:02:55.9]} 6... Nh5 {[%clk 0:02:56.1]} 7.
c3 {[%clk 0:02:54.3]} 7... d6 {[%clk 0:02:54.9]} 8. e4 {[%clk 0:02:52.5]} 8...
Nxg3 {[%clk 0:02:55.1]} 9. hxg3 {[%clk 0:02:52.1]} 9... e6 {[%clk 0:02:55.8]}
10. Bd3 {[%clk 0:02:45.9]} 10... a6 {[%clk 0:02:55.9]} 11. Qe2 {[%clk
0:02:42.7]} 11... b6 {[%clk 0:02:53.9]} 12. a4 {[%clk 0:02:41]} 12... Bb7 {[%clk
0:02:53.9]} 13. g4 {[%clk 0:02:37]} 13... Nd7 {[%clk 0:02:51.3]} 14. Nf1 {[%clk
0:02:26.9]} 14... Nf6 {[%clk 0:02:50.7]} 15. N3d2 {[%clk 0:02:11]} 15... c5
{[%clk 0:02:45.3]} 16. Ng3 {[%clk 0:02:07.6]} 16... Qc7 {[%clk 0:02:43.3]} 17.
O-O {[%clk 0:02:05.5]} 17... O-O {[%clk 0:02:38.3]} 18. Rfd1 {[%clk 0:01:53.4]}
18... Rfd8 {[%clk 0:02:35.2]} 19. Ndf1 {[%clk 0:01:43.8]} 19... Rac8 {[%clk
0:02:31]} 20. Ne3 {[%clk 0:01:31.9]} 20... cxd4 {[%clk 0:02:30.4]} 21. cxd4
{[%clk 0:01:31.7]} 21... b5 {[%clk 0:02:31]} 22. axb5 {[%clk 0:01:16]} 22...
axb5 {[%clk 0:02:31.9]} 23. Bc2 {[%clk 0:01:08.7]} 23... Qb6 {[%clk 0:02:25.3]}
24. Qd3 {[%clk 0:01:06.4]} 24... b4 {[%clk 0:02:15.1]} 25. Bb3 {[%clk
0:01:03.6]} 25... Ra8 {[%clk 0:01:48.9]} 26. Rxa8 {[%clk 0:00:50.7]} 26... Rxa8
{[%clk 0:01:48.3]} 27. d5 {[%clk 0:00:51.6]} 27... Ba6 {[%clk 0:01:47.3]} 28.
Qd2 {[%clk 0:00:41.1]} 28... e5 {[%clk 0:01:47.1]} 29. Ra1 {[%clk 0:00:37.7]}
29... Bb7 {[%clk 0:01:40.1]} 30. Rxa8+ {[%clk 0:00:36.4]} 30... Bxa8 {[%clk
0:01:41]} 31. Nc4 {[%clk 0:00:33.1]} 31... Qc5 {[%clk 0:01:39.4]} 32. Ne3 {[%clk
0:00:27]} 32... Bb7 {[%clk 0:01:34.5]} 33. Qc2 {[%clk 0:00:24.2]} 33... Nd7
{[%clk 0:01:22.1]} 34. Ngf5 {[%clk 0:00:20.7]} 34... Bf8 {[%clk 0:01:21.5]} 35.
g3 {[%clk 0:00:19.2]} 35... Ba6 {[%clk 0:01:14.9]} 36. Kg2 {[%clk 0:00:19.3]}
36... Qxc2 {[%clk 0:01:14.5]} 37. Bxc2 {[%clk 0:00:19.8]} 37... Nc5 {[%clk
0:01:13.3]} 38. f3 {[%clk 0:00:17.5]} 38... b3 {[%clk 0:01:06.6]} 39. Bb1 {[%clk
0:00:16.4]} 39... Na4 {[%clk 0:01:05.8]} 40. Nd1 {[%clk 0:00:13.5]} 40... h5
{[%clk 0:00:44.9]} 41. gxh5 {[%clk 0:00:11.5]} 41... Be2 {[%clk 0:00:44.6]} 42.
Nfe3 {[%clk 0:00:11.4]} 42... g4 {[%clk 0:00:40.4]} 43. fxg4 {[%clk 0:00:10.6]}
43... Bh6 {[%clk 0:00:40.4]} 44. Kf2 {[%clk 0:00:11.1]} 44... Ba6 {[%clk
0:00:31.8]} 45. Nf5 {[%clk 0:00:06.9]} 45... Bc1 {[%clk 0:00:31.6]} 46. Nxd6
{[%clk 0:00:07.1]} 46... Bxb2 {[%clk 0:00:25.4]} 47. Ne3 {[%clk 0:00:06.6]}
47... Bd4 {[%clk 0:00:22.8]} 48. Kf3 {[%clk 0:00:07.1]} 48... Nc3 {[%clk
0:00:22.3]} 49. Ndf5 {[%clk 0:00:03.8]} 49... Nxb1 {[%clk 0:00:20]} 50. d6
{[%clk 0:00:03.6]} 50... Nd2+ {[%clk 0:00:19.8]} 51. Kg2 {[%clk 0:00:03.5]}
51... Bxe3 {[%clk 0:00:11.1]} 52. Nxe3 {[%clk 0:00:03.8]} 52... Bc8 {[%clk
0:00:09.8]} 53. Nc4 {[%clk 0:00:03.2]} 53... Nxc4 {[%clk 0:00:09.2]} 54. g5
{[%clk 0:00:04.1]} 54... b2 {[%clk 0:00:09.2]} 55. g6 {[%clk 0:00:04.5]} 55...
fxg6 {[%clk 0:00:08.9]} 56. h6 {[%clk 0:00:05.4]} 56... Bd7 {[%clk 0:00:09]} 0-1

[Event "Late-Titled-Tuesday-Blitz-December-26-2023"]
[Site "Chess.com"]
[Date "2023.12.26"]
[Round "1"]
[White "ilushka"]
[Black "Kiborg95"]
[Result "0-1"]
[WhiteElo "2454"]
[BlackElo "2822"]
[TimeControl "180+1"]
[EndTime "14:08:09 PST"]
[Termination "Kiborg95 won on time"]

1. Nf3 {[%clk 0:03:00.9]} 1... d6 {[%clk 0:02:58.6]} 2. d4 {[%clk 0:03:00.1]}
2... Nf6 {[%clk 0:02:58.2]} 3. b3 {[%clk 0:02:59.9]} 3... Bg4 {[%clk 0:02:54.9]}
4. Bb2 {[%clk 0:02:58]} 4... Bxf3 {[%clk 0:02:53.9]} 5. exf3 {[%clk 0:02:57.5]}
5... d5 {[%clk 0:02:54.6]} 6. g3 {[%clk 0:02:56.5]} 6... e6 {[%clk 0:02:54.9]}
7. Bg2 {[%clk 0:02:56.6]} 7... Nbd7 {[%clk 0:02:53.6]} 8. O-O {[%clk 0:02:56.7]}
8... c6 {[%clk 0:02:52.4]} 9. f4 {[%clk 0:02:56.8]} 9... g6 {[%clk 0:02:52.7]}
10. Nd2 {[%clk 0:02:52]} 10... h5 {[%clk 0:02:52.9]} 11. h4 {[%clk 0:02:49.9]}
11... a5 {[%clk 0:02:53]} 12. a4 {[%clk 0:02:43.7]} 12... Bb4 {[%clk 0:02:50.9]}
13. c3 {[%clk 0:02:34.7]} 13... Be7 {[%clk 0:02:48.4]} 14. Nf3 {[%clk
0:02:34.2]} 14... O-O {[%clk 0:02:43.5]} 15. Ne5 {[%clk 0:02:34.1]} 15... Qc7
{[%clk 0:02:43.8]} 16. c4 {[%clk 0:02:28.6]} 16... Rfb8 {[%clk 0:02:42.2]} 17.
Rc1 {[%clk 0:02:16.9]} 17... Qd8 {[%clk 0:02:39.2]} 18. Re1 {[%clk 0:02:06.4]}
18... Nf8 {[%clk 0:02:38.7]} 19. Qd3 {[%clk 0:01:57.2]} 19... Bb4 {[%clk
0:02:37]} 20. Re2 {[%clk 0:01:47.5]} 20... Rc8 {[%clk 0:02:26.7]} 21. Rec2
{[%clk 0:01:35.4]} 21... N6d7 {[%clk 0:01:56.2]} 22. c5 {[%clk 0:01:09.7]} 22...
Nxe5 {[%clk 0:01:45.9]} 23. fxe5 {[%clk 0:01:09.4]} 23... b6 {[%clk 0:01:46.5]}
24. Bc3 {[%clk 0:00:49.8]} 24... bxc5 {[%clk 0:01:42.4]} 25. Bxb4 {[%clk
0:00:49.8]} 25... c4 {[%clk 0:01:27.3]} 26. bxc4 {[%clk 0:00:43.3]} 26... axb4
{[%clk 0:01:27.8]} 27. cxd5 {[%clk 0:00:41.7]} 27... cxd5 {[%clk 0:01:28.7]} 28.
Rxc8 {[%clk 0:00:24.8]} 28... Rxc8 {[%clk 0:01:29.6]} 29. Rxc8 {[%clk
0:00:04.2]} 29... Qxc8 {[%clk 0:01:30.5]} 30. Qb5 {[%clk 0:00:04.2]} 30... Qc3
{[%clk 0:01:25.2]} 31. a5 {[%clk 0:00:03.9]} 31... b3 {[%clk 0:01:25.2]} 32. a6
{[%clk 0:00:03.6]} 32... b2 {[%clk 0:01:14.4]} 33. a7 {[%clk 0:00:03.8]} 33...
Qc1+ {[%clk 0:01:10.2]} 34. Bf1 {[%clk 0:00:03.5]} 34... b1=Q {[%clk 0:00:44.8]}
35. Qxb1 {[%clk 0:00:03.5]} 35... Qxb1 {[%clk 0:00:45.7]} 36. a8=Q {[%clk
0:00:03.8]} 36... Kg7 {[%clk 0:00:33.9]} 37. Qa7 {[%clk 0:00:03.8]} 37... Qd1
{[%clk 0:00:32.2]} 38. Qc5 {[%clk 0:00:03.6]} 38... Nh7 {[%clk 0:00:31.8]} 39.
Kg2 {[%clk 0:00:02.6]} 39... g5 {[%clk 0:00:32.4]} 40. hxg5 {[%clk 0:00:02.5]}
40... Nxg5 {[%clk 0:00:33.3]} 41. Qc3 {[%clk 0:00:02.2]} 41... Ne4 {[%clk
0:00:30.9]} 42. Qe3 {[%clk 0:00:02.2]} 42... Qg4 {[%clk 0:00:22.4]} 43. Be2
{[%clk 0:00:02.4]} 43... Qf5 {[%clk 0:00:17.8]} 44. Qf3 {[%clk 0:00:01.5]} 44...
Qxf3+ {[%clk 0:00:10.3]} 45. Bxf3 {[%clk 0:00:02.4]} 45... Kg6 {[%clk
0:00:10.7]} 46. Bxe4+ {[%clk 0:00:02.6]} 46... dxe4 {[%clk 0:00:11.6]} 47. Kf1
{[%clk 0:00:02.5]} 47... f5 {[%clk 0:00:04.9]} 48. exf6 {[%clk 0:00:02.2]} 48...
Kxf6 {[%clk 0:00:05.6]} 49. Ke2 {[%clk 0:00:03.1]} 49... Kg6 {[%clk 0:00:02.4]}
50. Ke3 {[%clk 0:00:03.3]} 50... Kf5 {[%clk 0:00:03.1]} 51. Ke2 {[%clk 0:00:03]}
51... Kf6 {[%clk 0:00:02.7]} 52. Kd2 {[%clk 0:00:03.2]} 52... Kg6 {[%clk
0:00:03.1]} 53. Ke2 {[%clk 0:00:02.5]} 53... Kf6 {[%clk 0:00:03.6]} 0-1

[Event "Late-Titled-Tuesday-Blitz-December-26-2023"]
[Site "Chess.com"]
[Date "2023.12.26"]
[Round "1"]
[White "Walter_White_Poland"]
[Black "Cipy77"]
[Result "0-1"]
[WhiteElo "2270"]
[BlackElo "2580"]
[TimeControl "180+1"]
[EndTime "14:08:11 PST"]
[Termination "Cipy77 won by resignation"]

1. e4 {[%clk 0:02:59.3]} 1... Nc6 {[%clk 0:02:54.6]} 2. Nf3 {[%clk 0:02:58.6]}
2... d6 {[%clk 0:02:53.8]} 3. d4 {[%clk 0:02:57.6]} 3... g6 {[%clk 0:02:54.3]}
4. d5 {[%clk 0:02:56.1]} 4... Nb8 {[%clk 0:02:53.7]} 5. c4 {[%clk 0:02:56.2]}
5... Bg7 {[%clk 0:02:54.2]} 6. Nc3 {[%clk 0:02:56.4]} 6... Nd7 {[%clk
0:02:54.3]} 7. Be2 {[%clk 0:02:56.6]} 7... a6 {[%clk 0:02:53.1]} 8. O-O {[%clk
0:02:56.6]} 8... Ngf6 {[%clk 0:02:53.5]} 9. Ne1 {[%clk 0:02:56.3]} 9... O-O
{[%clk 0:02:52.5]} 10. Nd3 {[%clk 0:02:56.2]} 10... c6 {[%clk 0:02:52.3]} 11. f3
{[%clk 0:02:51]} 11... cxd5 {[%clk 0:02:48.9]} 12. cxd5 {[%clk 0:02:50.8]} 12...
Ne8 {[%clk 0:02:34.2]} 13. Be3 {[%clk 0:02:48.7]} 13... Ne5 {[%clk 0:02:30.7]}
14. Nxe5 {[%clk 0:02:46.2]} 14... Bxe5 {[%clk 0:02:31.6]} 15. Qd2 {[%clk
0:02:44.9]} 15... Bd7 {[%clk 0:02:28.5]} 16. a4 {[%clk 0:02:14.6]} 16... Qa5
{[%clk 0:02:20.1]} 17. Kh1 {[%clk 0:01:54.1]} 17... Rc8 {[%clk 0:02:18.3]} 18.
f4 {[%clk 0:01:44.4]} 18... Bxc3 {[%clk 0:02:04.6]} 19. bxc3 {[%clk 0:01:45.3]}
19... Qxc3 {[%clk 0:02:04.2]} 20. Qxc3 {[%clk 0:01:43.4]} 20... Rxc3 {[%clk
0:02:03.4]} 21. Bd4 {[%clk 0:01:43.1]} 21... Rc2 {[%clk 0:02:01.5]} 22. Bf3
{[%clk 0:01:42.9]} 22... Nf6 {[%clk 0:01:55.4]} 23. Rfc1 {[%clk 0:01:42]} 23...
Rfc8 {[%clk 0:01:55.1]} 24. Rxc2 {[%clk 0:01:41.5]} 24... Rxc2 {[%clk 0:01:56]}
25. e5 {[%clk 0:01:40.3]} 25... Ng4 {[%clk 0:01:47.2]} 26. e6 {[%clk 0:01:35.2]}
26... Bxa4 {[%clk 0:01:36.7]} 27. exf7+ {[%clk 0:01:32.4]} 27... Kxf7 {[%clk
0:01:35.5]} 28. Bxg4 {[%clk 0:01:33.3]} 28... Bb3 {[%clk 0:01:28]} 29. Be6+
{[%clk 0:01:32.4]} 29... Kf8 {[%clk 0:01:27.5]} 30. f5 {[%clk 0:01:15.8]} 30...
gxf5 {[%clk 0:01:21.4]} 31. Rf1 {[%clk 0:01:14.2]} 31... Ke8 {[%clk 0:01:19.3]}
32. h4 {[%clk 0:00:46.5]} 32... Rc4 {[%clk 0:00:52.1]} 33. Rf4 {[%clk
0:00:31.2]} 33... a5 {[%clk 0:00:47.2]} 34. g4 {[%clk 0:00:25.2]} 34... a4
{[%clk 0:00:42.3]} 35. gxf5 {[%clk 0:00:25]} 35... h5 {[%clk 0:00:22]} 36. Be3
{[%clk 0:00:13.4]} 36... Rc3 {[%clk 0:00:19.1]} 37. Rf3 {[%clk 0:00:10.6]} 37...
a3 {[%clk 0:00:17.4]} 38. Rg3 {[%clk 0:00:10.4]} 38... Bxd5+ {[%clk 0:00:08.2]}
39. Bxd5 {[%clk 0:00:11.3]} 39... Kd7 {[%clk 0:00:07.8]} 40. Be6+ {[%clk
0:00:10.7]} 40... Kc6 {[%clk 0:00:07.3]} 41. Bf4 {[%clk 0:00:04.8]} 41... Rxg3
{[%clk 0:00:04.1]} 42. Bxg3 {[%clk 0:00:04.8]} 42... b5 {[%clk 0:00:05]} 43. Be1
{[%clk 0:00:03.6]} 43... d5 {[%clk 0:00:04.6]} 44. Kg1 {[%clk 0:00:03.1]} 44...
a2 {[%clk 0:00:04.8]} 45. Bxd5+ {[%clk 0:00:02.3]} 45... Kxd5 {[%clk 0:00:04.6]}
46. Bc3 {[%clk 0:00:02.5]} 46... Kc4 {[%clk 0:00:05.1]} 47. Ba1 {[%clk
0:00:02.7]} 47... Kb3 {[%clk 0:00:05.7]} 48. f6 {[%clk 0:00:03]} 48... exf6
{[%clk 0:00:06.2]} 49. Bxf6 {[%clk 0:00:03.2]} 49... Kc2 {[%clk 0:00:07]} 50.
Kf2 {[%clk 0:00:03.4]} 50... b4 {[%clk 0:00:07.9]} 51. Kf3 {[%clk 0:00:03.8]}
51... b3 {[%clk 0:00:08.8]} 52. Kf4 {[%clk 0:00:04.2]} 52... b2 {[%clk
0:00:09.1]} 53. Bxb2 {[%clk 0:00:05.1]} 53... Kxb2 {[%clk 0:00:09.3]} 54. Kg5
{[%clk 0:00:06]} 54... a1=Q {[%clk 0:00:09.9]} 55. Kxh5 {[%clk 0:00:06.9]} 55...
Qa7 {[%clk 0:00:10.2]} 56. Kg5 {[%clk 0:00:07.8]} 56... Qg7+ {[%clk 0:00:05.7]}
57. Kh5 {[%clk 0:00:07.8]} 57... Qh8+ {[%clk 0:00:06.2]} 58. Kg5 {[%clk
0:00:07.7]} 58... Kc3 {[%clk 0:00:07.1]} 59. h5 {[%clk 0:00:08.4]} 59... Kd4
{[%clk 0:00:08]} 60. h6 {[%clk 0:00:08.9]} 60... Ke5 {[%clk 0:00:08.7]} 61. Kg6
{[%clk 0:00:09.8]} 61... Ke6 {[%clk 0:00:09]} 62. h7 {[%clk 0:00:10.1]} 62...
Ke7 {[%clk 0:00:09.8]} 63. Kh6 {[%clk 0:00:10.5]} 63... Kf7 {[%clk 0:00:10.7]}
64. Kg5 {[%clk 0:00:10.3]} 64... Qxh7 {[%clk 0:00:11.4]} 0-1

[Event "Late-Titled-Tuesday-Blitz-December-26-2023"]
[Site "Chess.com"]
[Date "2023.12.26"]
[Round "1"]
[White "only_strong_moves"]
[Black "DanielNaroditsky"]
[Result "0-1"]
[WhiteElo "2510"]
[BlackElo "3112"]
[TimeControl "180+1"]
[EndTime "14:08:19 PST"]
[Termination "DanielNaroditsky won by resignation"]

1. d4 {[%clk 0:03:00.4]} 1... Nf6 {[%clk 0:02:58.5]} 2. Nc3 {[%clk 0:02:56.6]}
2... d5 {[%clk 0:02:58.6]} 3. Bf4 {[%clk 0:02:57]} 3... a6 {[%clk 0:02:52.9]} 4.
e3 {[%clk 0:02:56.5]} 4... e6 {[%clk 0:02:52.1]} 5. a3 {[%clk 0:02:50.2]} 5...
c5 {[%clk 0:02:51.4]} 6. Nf3 {[%clk 0:02:50.1]} 6... Nc6 {[%clk 0:02:51.1]} 7.
Be2 {[%clk 0:02:50.5]} 7... cxd4 {[%clk 0:02:45.5]} 8. exd4 {[%clk 0:02:50.3]}
8... Bd6 {[%clk 0:02:44.5]} 9. Qd2 {[%clk 0:02:45.2]} 9... O-O {[%clk
0:02:37.6]} 10. O-O {[%clk 0:02:45.2]} 10... Ne4 {[%clk 0:02:33.3]} 11. Qe3
{[%clk 0:01:26]} 11... Nxc3 {[%clk 0:02:13.7]} 12. bxc3 {[%clk 0:01:25.1]} 12...
Qc7 {[%clk 0:01:51.3]} 13. Bxd6 {[%clk 0:01:20.1]} 13... Qxd6 {[%clk 0:01:52.2]}
14. c4 {[%clk 0:01:17.3]} 14... dxc4 {[%clk 0:01:51.7]} 15. Bxc4 {[%clk
0:01:18.2]} 15... b5 {[%clk 0:01:51.4]} 16. Bd3 {[%clk 0:01:16.4]} 16... Bb7
{[%clk 0:01:38.6]} 17. Rfd1 {[%clk 0:01:09.8]} 17... Rad8 {[%clk 0:01:28]} 18.
c3 {[%clk 0:00:55.4]} 18... Ne7 {[%clk 0:01:22.7]} 19. Ne5 {[%clk 0:00:40.5]}
19... Nd5 {[%clk 0:01:02.6]} 20. Qe1 {[%clk 0:00:12.9]} 20... f6 {[%clk
0:00:59]} 21. Nf3 {[%clk 0:00:12.4]} 21... Rd7 {[%clk 0:00:45.5]} 22. c4 {[%clk
0:00:12.5]} 22... bxc4 {[%clk 0:00:44.2]} 23. Bxc4 {[%clk 0:00:13.4]} 23... Nf4
{[%clk 0:00:44.7]} 24. Qe3 {[%clk 0:00:08.3]} 24... Rc8 {[%clk 0:00:39.9]} 25.
Bb3 {[%clk 0:00:04.9]} 25... Rc3 {[%clk 0:00:29.7]} 26. Bxe6+ {[%clk 0:00:05.4]}
26... Kf8 {[%clk 0:00:27.3]} 27. Bxd7 {[%clk 0:00:03.8]} 27... Rxe3 {[%clk
0:00:27.2]} 28. fxe3 {[%clk 0:00:04.7]} 28... Ne2+ {[%clk 0:00:15.9]} 29. Kf2
{[%clk 0:00:04.5]} 29... Nc3 {[%clk 0:00:16.5]} 30. Bg4 {[%clk 0:00:03]} 30...
Nxd1+ {[%clk 0:00:15.7]} 31. Rxd1 {[%clk 0:00:03.9]} 31... Be4 {[%clk
0:00:10.1]} 32. Nd2 {[%clk 0:00:03.6]} 32... Bd5 {[%clk 0:00:06.3]} 33. h3
{[%clk 0:00:03.4]} 33... Qxa3 {[%clk 0:00:06.5]} 34. Bf3 {[%clk 0:00:03.4]}
34... Bxf3 {[%clk 0:00:04.9]} 35. Nxf3 {[%clk 0:00:04.3]} 35... a5 {[%clk
0:00:04.6]} 36. Rd2 {[%clk 0:00:05.2]} 36... Ke7 {[%clk 0:00:04.5]} 37. d5
{[%clk 0:00:06.1]} 37... Qb4 {[%clk 0:00:04.4]} 38. d6+ {[%clk 0:00:06.7]} 38...
Kd7 {[%clk 0:00:04.6]} 39. Rd4 {[%clk 0:00:07.1]} 39... Qb2+ {[%clk 0:00:05.1]}
40. Rd2 {[%clk 0:00:07.5]} 40... Qb3 {[%clk 0:00:04.8]} 41. Nd4 {[%clk
0:00:07.5]} 41... Qb4 {[%clk 0:00:05.5]} 42. Rc2 {[%clk 0:00:07.1]} 42... Qxd6
{[%clk 0:00:05.3]} 43. Nb5 {[%clk 0:00:06.6]} 43... Qd3 {[%clk 0:00:03.7]} 44.
Rc7+ {[%clk 0:00:05.8]} 44... Kd8 {[%clk 0:00:04.4]} 45. Rc5 {[%clk 0:00:04.2]}
45... Qd2+ {[%clk 0:00:04.3]} 46. Kf3 {[%clk 0:00:04.8]} 46... a4 {[%clk
0:00:03.3]} 47. Nc3 {[%clk 0:00:05.4]} 47... Ke8 {[%clk 0:00:03]} 48. Nxa4
{[%clk 0:00:04.8]} 48... Qd1+ {[%clk 0:00:03]} 49. Kg3 {[%clk 0:00:04.9]} 49...
Qxa4 {[%clk 0:00:03.9]} 50. Rc3 {[%clk 0:00:04.8]} 50... Qe4 {[%clk 0:00:03.7]}
51. Kf2 {[%clk 0:00:04.9]} 51... Kf7 {[%clk 0:00:03.8]} 52. Ra3 {[%clk
0:00:05.4]} 52... h5 {[%clk 0:00:04.2]} 53. Ra7+ {[%clk 0:00:05.9]} 53... Kg6
{[%clk 0:00:04.5]} 54. Ra5 {[%clk 0:00:06.8]} 54... Qc2+ {[%clk 0:00:04.8]} 55.
Kg3 {[%clk 0:00:07.2]} 55... Qe2 {[%clk 0:00:04.7]} 56. Ra3 {[%clk 0:00:06.8]}
56... h4+ {[%clk 0:00:04.6]} 57. Kh2 {[%clk 0:00:06.2]} 57... Qf2 {[%clk
0:00:04.5]} 58. e4 {[%clk 0:00:05.7]} 58... Qf4+ {[%clk 0:00:04.8]} 59. Kg1
{[%clk 0:00:05.8]} 59... Qc1+ {[%clk 0:00:04.6]} 60. Kh2 {[%clk 0:00:05.9]}
60... Qxa3 {[%clk 0:00:04.8]} 0-1

[Event "Late-Titled-Tuesday-Blitz-December-26-2023"]
[Site "Chess.com"]
[Date "2023.12.26"]
[Round "1"]
[White "le-castor-faineant"]
[Black "AyMitecK"]
[Result "1-0"]
[WhiteElo "2316"]
[BlackElo "2576"]
[TimeControl "180+1"]
[EndTime "14:08:21 PST"]
[Termination "le-castor-faineant won on time"]

1. e4 {[%clk 0:03:00.9]} 1... c6 {[%clk 0:02:57.6]} 2. d4 {[%clk 0:03:00.5]}
2... d5 {[%clk 0:02:57.6]} 3. Nc3 {[%clk 0:03:01]} 3... dxe4 {[%clk 0:02:56.9]}
4. Nxe4 {[%clk 0:03:01.9]} 4... Nf6 {[%clk 0:02:57.5]} 5. Nxf6+ {[%clk
0:03:01.4]} 5... exf6 {[%clk 0:02:58.4]} 6. Nf3 {[%clk 0:03:00.3]} 6... Be7
{[%clk 0:02:57.2]} 7. Bd3 {[%clk 0:03:00.2]} 7... Na6 {[%clk 0:02:56.9]} 8. O-O
{[%clk 0:02:59.9]} 8... Nc7 {[%clk 0:02:56.9]} 9. c3 {[%clk 0:02:58.3]} 9... O-O
{[%clk 0:02:56.7]} 10. Qc2 {[%clk 0:02:58.4]} 10... h6 {[%clk 0:02:56.9]} 11. h3
{[%clk 0:02:58.9]} 11... Be6 {[%clk 0:02:56.4]} 12. Re1 {[%clk 0:02:57.8]} 12...
a5 {[%clk 0:02:55.6]} 13. b3 {[%clk 0:02:57.5]} 13... a4 {[%clk 0:02:55.2]} 14.
Bd2 {[%clk 0:02:48.3]} 14... Bd5 {[%clk 0:02:30.5]} 15. Nh4 {[%clk 0:02:40.5]}
15... Re8 {[%clk 0:02:20.6]} 16. Nf5 {[%clk 0:02:36.6]} 16... Bf8 {[%clk
0:02:19.7]} 17. Rxe8 {[%clk 0:02:33.4]} 17... Qxe8 {[%clk 0:02:20.6]} 18. Re1
{[%clk 0:02:33.5]} 18... Qd7 {[%clk 0:02:14.9]} 19. Qd1 {[%clk 0:02:23.4]} 19...
axb3 {[%clk 0:01:41.2]} 20. axb3 {[%clk 0:02:11.6]} 20... Be6 {[%clk 0:01:23.2]}
21. Qf3 {[%clk 0:02:01.3]} 21... Ra2 {[%clk 0:01:15.2]} 22. Bc1 {[%clk
0:01:52.5]} 22... Nd5 {[%clk 0:01:13.2]} 23. c4 {[%clk 0:01:32]} 23... Nb4
{[%clk 0:01:07.4]} 24. Be4 {[%clk 0:01:32.1]} 24... Bxf5 {[%clk 0:00:45.7]} 25.
Qxf5 {[%clk 0:01:18.9]} 25... Qxf5 {[%clk 0:00:45.5]} 26. Bxf5 {[%clk
0:01:19.8]} 26... Nc2 {[%clk 0:00:33.6]} 27. Re2 {[%clk 0:01:10.1]} 27... Nb4
{[%clk 0:00:24.4]} 28. Rxa2 {[%clk 0:01:04.1]} 28... Nxa2 {[%clk 0:00:25.3]} 29.
Bf4 {[%clk 0:01:00.8]} 29... Nb4 {[%clk 0:00:18.6]} 30. Bc8 {[%clk 0:00:58.5]}
30... b6 {[%clk 0:00:15.1]} 31. Bc7 {[%clk 0:00:56.4]} 31... b5 {[%clk
0:00:15.2]} 32. cxb5 {[%clk 0:00:55.4]} 32... cxb5 {[%clk 0:00:16.1]} 33. Bb7
{[%clk 0:00:51.8]} 33... Nc2 {[%clk 0:00:10.2]} 34. d5 {[%clk 0:00:51.5]} 34...
Nd4 {[%clk 0:00:08.2]} 35. d6 {[%clk 0:00:30.2]} 35... Ne6 {[%clk 0:00:07.8]}
36. Bd5 {[%clk 0:00:30.6]} 36... Nc5 {[%clk 0:00:05.9]} 37. Bc6 {[%clk
0:00:29.5]} 37... Ne6 {[%clk 0:00:03.9]} 38. Bxb5 {[%clk 0:00:28.2]} 38... f5
{[%clk 0:00:02.8]} 39. Bc4 {[%clk 0:00:27.7]} 39... Nc5 {[%clk 0:00:02.8]} 40.
b4 {[%clk 0:00:26.7]} 40... Nd7 {[%clk 0:00:03]} 41. Bb5 {[%clk 0:00:25.5]}
41... Ne5 {[%clk 0:00:03]} 42. d7 {[%clk 0:00:25.4]} 42... Nxd7 {[%clk
0:00:02.3]} 43. Bxd7 {[%clk 0:00:26.3]} 43... Bxb4 {[%clk 0:00:03.2]} 44. Bxf5
{[%clk 0:00:25.6]} 44... Be7 {[%clk 0:00:03.8]} 45. f3 {[%clk 0:00:25.2]} 45...
g6 {[%clk 0:00:04]} 46. Bd3 {[%clk 0:00:24.4]} 46... Kg7 {[%clk 0:00:04.3]} 47.
Be5+ {[%clk 0:00:24.2]} 47... f6 {[%clk 0:00:04.8]} 48. Bd4 {[%clk 0:00:24.3]}
48... Bd6 {[%clk 0:00:04.1]} 49. Kf2 {[%clk 0:00:24.5]} 49... g5 {[%clk
0:00:02.4]} 50. Bf5 {[%clk 0:00:24.2]} 50... Be7 {[%clk 0:00:03.3]} 51. Bb6
{[%clk 0:00:23.1]} 51... h5 {[%clk 0:00:03.5]} 52. Ke3 {[%clk 0:00:21.1]} 52...
h4 {[%clk 0:00:03.6]} 53. Ke4 {[%clk 0:00:20.7]} 53... Bd6 {[%clk 0:00:03.8]}
54. Be6 {[%clk 0:00:20.6]} 54... Be5 {[%clk 0:00:03.6]} 55. Kf5 {[%clk
0:00:20.9]} 55... Bf4 {[%clk 0:00:02.2]} 56. Bd4 {[%clk 0:00:20.5]} 56... Be5
{[%clk 0:00:01.8]} 57. Bxe5 {[%clk 0:00:20.7]} 57... fxe5 {[%clk 0:00:02.7]} 58.
Kxg5 {[%clk 0:00:20.8]} 58... Kf8 {[%clk 0:00:02.6]} 59. Bd5 {[%clk 0:00:20.7]}
59... Ke7 {[%clk 0:00:03.5]} 60. Be4 {[%clk 0:00:21.5]} 60... Kd6 {[%clk
0:00:04.3]} 61. Kxh4 {[%clk 0:00:22.2]} 61... Kc5 {[%clk 0:00:05.2]} 62. Kg5
{[%clk 0:00:23]} 62... Kd4 {[%clk 0:00:06.1]} 63. h4 {[%clk 0:00:23.8]} 63...
Ke3 {[%clk 0:00:07]} 64. h5 {[%clk 0:00:24.7]} 1-0